[Event "Schack-SM 2023: Junior-SM"]
[Site "Helsingborg Arena, Mellersta Stenbocksgatan 14, Helsingborg, Sweden"]
[Date "2023.07.04"]
[Round "4.4"]
[White "Strom-Engdahl, Alexander"]
[Black "Ostlund, Joar"]
[Result "1-0"]
[TimeControl "90 minutes for 40 moves + 30 minutes for the rest of the game + 30 seconds per move from move one."]
[BlackTitle "CM"]
[WhiteElo "2120"]
[BlackElo "2265"]

1. e4 {[%clk 01:30:56]} {[%emt 00:00:03]} e5 {[%clk 01:30:15]} {[%emt
00:00:46]} 2. Nf3 {[%clk 01:31:19]} {[%emt 00:00:06]} Nc6 {[%clk 01:30:39]}
{[%emt 00:00:06]} 3. Bc4 {[%clk 01:31:42]} {[%emt 00:00:08]} Bc5 {[%clk
01:31:00]} {[%emt 00:00:09]} 4. c3 {[%clk 01:32:06]} {[%emt 00:00:06]} Nf6
{[%clk 01:31:23]} {[%emt 00:00:07]} 5. d3 {[%clk 01:32:31]} {[%emt 00:00:05]}
d6 {[%clk 01:31:39]} {[%emt 00:00:14]} 6. O-O {[%clk 01:32:52]} {[%emt
00:00:09]} a6 {[%clk 01:31:53]} {[%emt 00:00:16]} 7. a4 {[%clk 01:33:16]}
{[%emt 00:00:06]} Ba7 {[%clk 01:32:18]} {[%emt 00:00:06]} 8. Re1 {[%clk
01:33:38]} {[%emt 00:00:07]} h6 {[%clk 01:32:39]} {[%emt 00:00:10]} 9. Nbd2
{[%clk 01:32:11]} {[%emt 00:01:56]} Be6 {[%clk 01:32:41]} {[%emt 00:00:28]} 10.
Bxe6 {[%clk 01:31:48]} {[%emt 00:00:53]} fxe6 {[%clk 01:33:06]} {[%emt
00:00:04]} 11. Nf1 {[%clk 01:31:23]} {[%emt 00:00:55]} a5 {[%clk 01:33:23]}
{[%emt 00:00:14]} 12. d4 {[%clk 01:24:26]} {[%emt 00:07:27]} exd4 {[%clk
01:32:56]} {[%emt 00:00:57]} 13. cxd4 {[%clk 01:24:48]} {[%emt 00:00:07]} Qd7
{[%clk 01:32:39]} {[%emt 00:00:47]} 14. Ng3 {[%clk 01:20:16]} {[%emt 00:05:02]}
O-O {[%clk 01:27:28]} {[%emt 00:05:41]} 15. h3 {[%clk 01:15:12]} {[%emt
00:05:34]} Qf7 {[%clk 01:14:53]} {[%emt 00:13:05]} 16. Be3 {[%clk 01:08:43]}
{[%emt 00:07:00]} d5 {[%clk 01:13:02]} {[%emt 00:02:21]} 17. Ne5 {[%clk
01:01:55]} {[%emt 00:07:18]} Nxe5 {[%clk 01:13:14]} {[%emt 00:00:18]} 18. dxe5
{[%clk 01:02:17]} {[%emt 00:00:08]} Nxe4 {[%clk 00:58:48]} {[%emt 00:14:55]} 19.
Nxe4 {[%clk 01:02:02]} {[%emt 00:00:45]} Bxe3 {[%clk 00:58:33]} {[%emt
00:00:46]} 20. Rxe3 {[%clk 01:01:53]} {[%emt 00:00:39]} dxe4 {[%clk 00:58:58]}
{[%emt 00:00:05]} 21. Qe2 {[%clk 00:55:43]} {[%emt 00:06:40]} Rad8 {[%clk
00:55:41]} {[%emt 00:03:46]} 22. Rxe4 {[%clk 00:52:31]} {[%emt 00:03:41]} Rd5
{[%clk 00:55:35]} {[%emt 00:00:37]} 23. Ra3 {[%clk 00:49:25]} {[%emt 00:03:36]}
Qe7 {[%clk 00:32:38]} {[%emt 00:23:27]} 24. f4 {[%clk 00:37:49]} {[%emt
00:12:06]} Rfd8 {[%clk 00:29:00]} {[%emt 00:04:08]} 25. Rb3 {[%clk 00:34:22]}
{[%emt 00:03:58]} Qc5+ {[%clk 00:19:18]} {[%emt 00:10:12]} 26. Kh2 {[%clk
00:30:59]} {[%emt 00:03:52]} Rd2 {[%clk 00:17:28]} {[%emt 00:02:20]} 27. Qg4
{[%clk 00:28:57]} {[%emt 00:02:33]} Qd5 {[%clk 00:10:20]} {[%emt 00:07:38]} 28.
Rg3 {[%clk 00:27:07]} {[%emt 00:02:20]} Qd7 {[%clk 00:10:15]} {[%emt 00:00:35]}
29. Qg6 {[%clk 00:25:47]} {[%emt 00:01:50]} Rxb2 {[%clk 00:03:05]} {[%emt
00:07:40]} 30. Rd4 {[%clk 00:25:30]} {[%emt 00:00:48]} 1-0

[Event "Schack-SM 2023: Veteran-SM 65+"]
[Site "Helsingborg Arena, Mellersta Stenbocksgatan 14, Helsingborg, Sweden"]
[Date "2023.07.04"]
[Round "4.3"]
[White "Holst, Conny"]
[Black "Carlsson, Ingvar"]
[Result "1/2-1/2"]
[TimeControl "90 minutes for 40 moves + 30 minutes for the rest of games + 30 seconds per move from move one."]
[WhiteTitle "FM"]
[WhiteElo "2156"]
[BlackElo "1998"]

1. d4 {[%clk 01:30:54]} {[%emt 00:00:04]} Nf6 {[%clk 01:30:49]} {[%emt
00:00:11]} 2. c4 {[%clk 01:31:10]} {[%emt 00:00:14]} g6 {[%clk 01:31:09]}
{[%emt 00:00:11]} 3. Nc3 {[%clk 01:31:33]} {[%emt 00:00:07]} d5 {[%clk
01:31:26]} {[%emt 00:00:13]} 4. cxd5 {[%clk 01:30:39]} {[%emt 00:01:24]} Nxd5
{[%clk 01:31:47]} {[%emt 00:00:09]} 5. e4 {[%clk 01:31:01]} {[%emt 00:00:07]}
Nxc3 {[%clk 01:32:10]} {[%emt 00:00:08]} 6. bxc3 {[%clk 01:31:26]} {[%emt
00:00:06]} Bg7 {[%clk 01:32:06]} {[%emt 00:00:33]} 7. Nf3 {[%clk 01:29:47]}
{[%emt 00:02:09]} c5 {[%clk 01:32:01]} {[%emt 00:00:35]} 8. Be3 {[%clk
01:28:17]} {[%emt 00:02:00]} Bg4 {[%clk 01:30:49]} {[%emt 00:01:42]} 9. Be2
{[%clk 01:17:40]} {[%emt 00:11:07]} Nc6 {[%clk 01:30:36]} {[%emt 00:00:43]} 10.
e5 {[%clk 01:12:49]} {[%emt 00:05:21]} O-O {[%clk 01:24:28]} {[%emt 00:06:38]}
11. O-O {[%clk 01:13:00]} {[%emt 00:00:19]} cxd4 {[%clk 01:16:40]} {[%emt
00:08:19]} 12. cxd4 {[%clk 01:13:17]} {[%emt 00:00:12]} Be6 {[%clk 01:11:08]}
{[%emt 00:06:02]} 13. Qd2 {[%clk 01:04:51]} {[%emt 00:08:56]} Qa5 {[%clk
01:10:00]} {[%emt 00:01:38]} 14. Qxa5 {[%clk 00:52:57]} {[%emt 00:12:24]} Nxa5
{[%clk 01:10:21]} {[%emt 00:00:08]} 15. Rfc1 {[%clk 00:53:17]} {[%emt
00:00:11]} Rfc8 {[%clk 01:08:37]} {[%emt 00:02:14]} 16. Nd2 {[%clk 00:53:05]}
{[%emt 00:00:42]} Bd5 {[%clk 01:05:05]} {[%emt 00:04:02]} 17. Bf3 {[%clk
00:46:41]} {[%emt 00:06:54]} Bxf3 {[%clk 01:02:20]} {[%emt 00:03:14]} 18. gxf3
{[%clk 00:45:40]} {[%emt 00:01:32]} e6 {[%clk 00:30:18]} {[%emt 00:32:32]} 19.
Ne4 {[%clk 00:37:57]} {[%emt 00:08:13]} Nc4 {[%clk 00:27:47]} {[%emt 00:03:01]}
20. Nd6 {[%clk 00:36:40]} {[%emt 00:01:47]} Nxd6 {[%clk 00:28:06]} {[%emt
00:00:10]} 21. exd6 {[%clk 00:37:03]} {[%emt 00:00:08]} Rd8 {[%clk 00:27:46]}
{[%emt 00:00:49]} 22. Rc7 {[%clk 00:32:13]} {[%emt 00:05:21]} Rxd6 {[%clk
00:26:57]} {[%emt 00:01:19]} 23. Rxb7 {[%clk 00:28:38]} {[%emt 00:04:05]} Bxd4
{[%clk 00:27:10]} {[%emt 00:00:17]} 24. Rd1 {[%clk 00:23:03]} {[%emt 00:06:04]}
e5 {[%clk 00:27:27]} {[%emt 00:00:14]} 25. f4 {[%clk 00:23:17]} {[%emt
00:00:16]} a5 {[%clk 00:24:46]} {[%emt 00:03:12]} 26. fxe5 {[%clk 00:14:53]}
{[%emt 00:08:53]} Bxe5 {[%clk 00:25:07]} {[%emt 00:00:09]} 27. Rxd6 {[%clk
00:15:14]} {[%emt 00:00:09]} Bxd6 {[%clk 00:25:24]} {[%emt 00:00:12]} 28. a4
{[%clk 00:15:28]} {[%emt 00:00:17]} Bb4 {[%clk 00:11:10]} {[%emt 00:14:43]}
1/2-1/2

[Event "Schack-SM 2023: Veteran-SM 50+"]
[Site "Helsingborg Arena, Mellersta Stenbocksgatan 14, Helsingborg, Sweden"]
[Date "2023.07.04"]
[Round "4.3"]
[White "Andersson, Bjorn 1961"]
[Black "Petersson, Kjell"]
[Result "0-1"]
[TimeControl "90 minutes for 40 moves + 30 minutes for the rest of games + 30 seconds per move from move one."]
[BlackTitle "CM"]
[WhiteElo "1791"]
[BlackElo "2061"]

1. d4 {[%clk 01:28:45]} {[%emt 00:02:15]} f5 {[%clk 01:30:59]} {[%emt
00:00:01]} 2. Nf3 {[%clk 01:28:43]} {[%emt 00:00:32]} Nf6 {[%clk 01:31:26]}
{[%emt 00:00:03]} 3. c4 {[%clk 01:28:30]} {[%emt 00:00:44]} e6 {[%clk
01:31:53]} {[%emt 00:00:03]} 4. a3 {[%clk 01:28:18]} {[%emt 00:00:42]} a5
{[%clk 01:26:55]} {[%emt 00:05:28]} 5. Nc3 {[%clk 01:27:41]} {[%emt 00:01:06]}
Be7 {[%clk 01:25:33]} {[%emt 00:01:52]} 6. g3 {[%clk 01:24:57]} {[%emt
00:03:15]} d5 {[%clk 01:24:25]} {[%emt 00:01:38]} 7. Bg2 {[%clk 01:24:59]}
{[%emt 00:00:27]} c6 {[%clk 01:22:09]} {[%emt 00:02:46]} 8. Ne5 {[%clk
01:16:10]} {[%emt 00:09:18]} Nbd7 {[%clk 01:19:51]} {[%emt 00:02:49]} 9. O-O
{[%clk 01:09:35]} {[%emt 00:07:04]} Nxe5 {[%clk 01:16:08]} {[%emt 00:04:14]} 10.
dxe5 {[%clk 01:09:35]} {[%emt 00:00:30]} Ng4 {[%clk 01:09:29]} {[%emt
00:07:09]} 11. cxd5 {[%clk 01:05:00]} {[%emt 00:05:06]} exd5 {[%clk 01:08:12]}
{[%emt 00:01:47]} 12. Bf4 {[%clk 01:00:17]} {[%emt 00:05:11]} g5 {[%clk
00:59:48]} {[%emt 00:08:54]} 13. h3 {[%clk 00:55:24]} {[%emt 00:05:24]} gxf4
{[%clk 00:59:13]} {[%emt 00:01:05]} 14. hxg4 {[%clk 00:55:41]} {[%emt
00:00:13]} fxg3 {[%clk 00:58:06]} {[%emt 00:01:37]} 15. Qd3 {[%clk 00:54:53]}
{[%emt 00:01:18]} f4 {[%clk 00:44:38]} {[%emt 00:13:59]} 16. Rfd1 {[%clk
00:52:41]} {[%emt 00:02:40]} gxf2+ {[%clk 00:40:14]} {[%emt 00:04:55]} 17. Kf1
{[%clk 00:51:53]} {[%emt 00:01:18]} Be6 {[%clk 00:37:45]} {[%emt 00:02:59]} 18.
e4 {[%clk 00:49:49]} {[%emt 00:02:34]} fxe3 {[%clk 00:35:55]} {[%emt 00:02:20]}
19. Qxe3 {[%clk 00:49:56]} {[%emt 00:00:23]} Bg5 {[%clk 00:34:20]} {[%emt
00:02:05]} 20. Qd4 {[%clk 00:48:11]} {[%emt 00:02:15]} O-O {[%clk 00:33:43]}
{[%emt 00:01:08]} 21. Ne2 {[%clk 00:45:44]} {[%emt 00:02:56]} Qd7 {[%clk
00:32:57]} {[%emt 00:01:16]} 22. Nc3 {[%clk 00:45:05]} {[%emt 00:01:09]} Rf4
{[%clk 00:32:03]} {[%emt 00:01:24]} 23. Qc5 {[%clk 00:45:01]} {[%emt 00:00:34]}
Rxg4 {[%clk 00:17:46]} {[%emt 00:14:47]} 24. Bf3 {[%clk 00:42:53]} {[%emt
00:02:38]} Rf4 {[%clk 00:15:47]} {[%emt 00:02:28]} 25. Bg2 {[%clk 00:39:48]}
{[%emt 00:03:35]} Bh3 {[%clk 00:13:38]} {[%emt 00:02:40]} 26. Rd3 {[%clk
00:39:11]} {[%emt 00:01:07]} Bxg2+ {[%clk 00:12:42]} {[%emt 00:01:27]} 27. Kxg2
{[%clk 00:39:33]} {[%emt 00:00:07]} Qf5 {[%clk 00:11:23]} {[%emt 00:01:48]} 28.
Rdd1 {[%clk 00:38:36]} {[%emt 00:01:27]} f1=Q+ {[%clk 00:08:49]} {[%emt
00:03:05]} 29. Rxf1 {[%clk 00:38:52]} {[%emt 00:00:13]} Rg4+ {[%clk 00:06:47]}
{[%emt 00:02:32]} 30. Kh1 {[%clk 00:37:36]} {[%emt 00:01:47]} Bf4 {[%clk
00:06:05]} {[%emt 00:01:12]} 31. Rxf4 {[%clk 00:37:11]} {[%emt 00:00:55]} Qh5#
{[%clk 00:06:30]} {[%emt 00:00:05]} 0-1

[Event "Schack-SM 2023: Sverigemastarklassen"]
[Site "Helsingborg Arena, Mellersta Stenbocksgatan 14, Helsingborg, Sweden"]
[Date "2023.07.04"]
[Round "4.3"]
[White "Olsson, William"]
[Black "Johansson, Linus"]
[Result "1-0"]
[TimeControl "90 minutes for 40 moves + 30 minutes for the rest of the game + 30 seconds per move from move one."]
[WhiteTitle "FM"]
[BlackTitle "IM"]
[WhiteElo "2383"]
[BlackElo "2466"]

1. c4 {[%clk 01:30:56]} {[%emt 00:00:03]} g6 {[%clk 01:30:53]} {[%emt
00:00:07]} 2. g3 {[%clk 01:31:22]} {[%emt 00:00:04]} Bg7 {[%clk 01:31:19]}
{[%emt 00:00:04]} 3. Bg2 {[%clk 01:31:46]} {[%emt 00:00:05]} Nc6 {[%clk
01:31:45]} {[%emt 00:00:05]} 4. Nc3 {[%clk 01:32:08]} {[%emt 00:00:08]} e5
{[%clk 01:32:04]} {[%emt 00:00:11]} 5. Nf3 {[%clk 01:31:17]} {[%emt 00:01:21]}
d6 {[%clk 01:32:27]} {[%emt 00:00:07]} 6. Rb1 {[%clk 01:31:42]} {[%emt
00:00:05]} f5 {[%clk 01:32:12]} {[%emt 00:00:45]} 7. d3 {[%clk 01:32:01]}
{[%emt 00:00:11]} Nf6 {[%clk 01:32:32]} {[%emt 00:00:09]} 8. b4 {[%clk
01:32:23]} {[%emt 00:00:09]} O-O {[%clk 01:32:49]} {[%emt 00:00:11]} 9. b5
{[%clk 01:27:49]} {[%emt 00:05:05]} Ne7 {[%clk 01:32:23]} {[%emt 00:00:56]} 10.
Qb3 {[%clk 01:25:59]} {[%emt 00:02:19]} h6 {[%clk 01:32:01]} {[%emt 00:00:52]}
11. c5+ {[%clk 01:24:37]} {[%emt 00:01:53]} Kh8 {[%clk 01:32:08]} {[%emt
00:00:22]} 12. cxd6 {[%clk 01:24:20]} {[%emt 00:00:48]} cxd6 {[%clk 01:32:32]}
{[%emt 00:00:06]} 13. O-O {[%clk 01:24:44]} {[%emt 00:00:06]} Nd7 {[%clk
01:17:47]} {[%emt 00:15:14]} 14. Ba3 {[%clk 01:19:29]} {[%emt 00:05:46]} Nc5
{[%clk 01:17:55]} {[%emt 00:00:22]} 15. Bxc5 {[%clk 01:18:30]} {[%emt
00:01:29]} dxc5 {[%clk 01:18:17]} {[%emt 00:00:07]} 16. Na4 {[%clk 01:16:19]}
{[%emt 00:02:41]} Qd6 {[%clk 01:13:44]} {[%emt 00:05:03]} 17. Qc2 {[%clk
01:12:24]} {[%emt 00:04:26]} Bd7 {[%clk 00:48:31]} {[%emt 00:25:42]} 18. Qxc5
{[%clk 01:07:37]} {[%emt 00:05:16]} Qe6 {[%clk 00:48:48]} {[%emt 00:00:13]} 19.
Qb4 {[%clk 01:03:53]} {[%emt 00:04:15]} b6 {[%clk 00:47:53]} {[%emt 00:01:24]}
20. Nc3 {[%clk 00:48:43]} {[%emt 00:15:40]} Rac8 {[%clk 00:45:44]} {[%emt
00:02:39]} 21. Rbc1 {[%clk 00:43:24]} {[%emt 00:05:50]} Rc5 {[%clk 00:37:59]}
{[%emt 00:08:14]} 22. Nd2 {[%clk 00:42:18]} {[%emt 00:01:36]} Rfc8 {[%clk
00:38:02]} {[%emt 00:00:26]} 23. Nb3 {[%clk 00:42:05]} {[%emt 00:00:44]} R5c7
{[%clk 00:38:14]} {[%emt 00:00:17]} 24. e4 {[%clk 00:37:47]} {[%emt 00:04:48]}
Bf8 {[%clk 00:34:17]} {[%emt 00:04:27]} 25. Ne2 {[%clk 00:38:12]} {[%emt
00:00:06]} Ng8 {[%clk 00:31:35]} {[%emt 00:03:11]} 26. exf5 {[%clk 00:34:08]}
{[%emt 00:04:34]} gxf5 {[%clk 00:31:17]} {[%emt 00:00:48]} 27. Qa4 {[%clk
00:34:20]} {[%emt 00:00:18]} a5 {[%clk 00:20:14]} {[%emt 00:11:33]} 28. Rxc7
{[%clk 00:32:55]} {[%emt 00:01:55]} Rxc7 {[%clk 00:20:38]} {[%emt 00:00:06]} 29.
Rc1 {[%clk 00:33:21]} {[%emt 00:00:04]} Rxc1+ {[%clk 00:20:31]} {[%emt
00:00:37]} 30. Nbxc1 {[%clk 00:33:44]} {[%emt 00:00:07]} Nf6 {[%clk 00:18:12]}
{[%emt 00:02:48]} 31. Bc6 {[%clk 00:30:23]} {[%emt 00:03:52]} Bc8 {[%clk
00:18:19]} {[%emt 00:00:23]} 32. d4 {[%clk 00:23:48]} {[%emt 00:07:04]} e4
{[%clk 00:06:57]} {[%emt 00:11:53]} 33. Nf4 {[%clk 00:23:37]} {[%emt 00:00:42]}
Qf7 {[%clk 00:07:22]} {[%emt 00:00:05]} 34. Qb3 {[%clk 00:23:14]} {[%emt
00:00:53]} Kg7 {[%clk 00:07:00]} {[%emt 00:00:52]} 35. d5 {[%clk 00:16:03]}
{[%emt 00:07:42]} Bd6 {[%clk 00:05:49]} {[%emt 00:01:40]} 36. Nce2 {[%clk
00:15:15]} {[%emt 00:01:18]} Qe7 {[%clk 00:03:56]} {[%emt 00:02:24]} 37. Qc3
{[%clk 00:14:31]} {[%emt 00:01:14]} Kf7 {[%clk 00:03:12]} {[%emt 00:01:14]} 38.
Kg2 {[%clk 00:12:41]} {[%emt 00:02:20]} Qe5 {[%clk 00:02:16]} {[%emt 00:01:26]}
39. h3 {[%clk 00:07:24]} {[%emt 00:05:47]} Nd7 {[%clk 00:01:51]} {[%emt
00:00:55]} 40. Ne6 {[%clk 00:00:34]} {[%emt 00:07:20]} Qxc3 {[%clk 00:00:55]}
{[%emt 00:01:26]} 41. Nxc3 {[%clk 00:00:59]} {[%emt 00:00:04]} Nc5 {[%clk
00:29:05]} {[%emt 00:02:19]} 42. Nxc5 {[%clk 00:28:03]} {[%emt 00:03:26]} Bxc5
{[%clk 00:29:20]} {[%emt 00:00:16]} 43. f3 {[%clk 00:28:23]} {[%emt 00:00:10]}
exf3+ {[%clk 00:25:32]} {[%emt 00:04:18]} 44. Kxf3 {[%clk 00:28:37]} {[%emt
00:00:16]} Kf6 {[%clk 00:23:06]} {[%emt 00:02:56]} 45. Nd1 {[%clk 00:27:52]}
{[%emt 00:01:15]} Ke5 {[%clk 00:21:27]} {[%emt 00:02:09]} 46. Nb2 {[%clk
00:28:13]} {[%emt 00:00:09]} Kf6 {[%clk 00:10:42]} {[%emt 00:11:15]} 47. Nc4
{[%clk 00:27:54]} {[%emt 00:00:49]} Ke7 {[%clk 00:11:07]} {[%emt 00:00:05]} 48.
Kf4 {[%clk 00:26:52]} {[%emt 00:01:32]} Bf2 {[%clk 00:11:06]} {[%emt 00:00:31]}
49. a4 {[%clk 00:23:55]} {[%emt 00:03:27]} Bd4 {[%clk 00:08:52]} {[%emt
00:02:44]} 50. h4 {[%clk 00:21:51]} {[%emt 00:02:34]} Bf2 {[%clk 00:09:14]}
{[%emt 00:00:07]} 51. h5 {[%clk 00:22:11]} {[%emt 00:00:10]} Bd4 {[%clk
00:09:37]} {[%emt 00:00:06]} 52. d6+ {[%clk 00:22:17]} {[%emt 00:00:25]} Ke6
{[%clk 00:10:02]} {[%emt 00:00:06]} 53. d7 {[%clk 00:22:41]} {[%emt 00:00:06]}
Bxd7 {[%clk 00:10:25]} {[%emt 00:00:07]} 54. Bxd7+ {[%clk 00:23:06]} {[%emt
00:00:05]} Kxd7 {[%clk 00:07:14]} {[%emt 00:03:41]} 55. Kxf5 {[%clk 00:23:30]}
{[%emt 00:00:05]} Bf2 {[%clk 00:07:34]} {[%emt 00:00:10]} 56. g4 {[%clk
00:23:50]} {[%emt 00:00:10]} Bd4 {[%clk 00:08:01]} {[%emt 00:00:04]} 57. Kg6
{[%clk 00:17:41]} {[%emt 00:06:39]} Ke6 {[%clk 00:08:09]} {[%emt 00:00:20]} 58.
Kxh6 {[%clk 00:18:08]} {[%emt 00:00:04]} Kd5 {[%clk 00:08:32]} {[%emt
00:00:07]} 59. Nxb6+ {[%clk 00:18:34]} {[%emt 00:00:04]} 1-0

[Event "Schack-SM 2023: Mastarklassen-elit"]
[Site "Helsingborg Arena, Mellersta Stenbocksgatan 14, Helsingborg, Sweden"]
[Date "2023.07.04"]
[Round "4.2"]
[White "Olund, Joar"]
[Black "Lokander, Martin"]
[Result "1/2-1/2"]
[TimeControl "90 minutes for 40 moves + 30 minutes for the rest of games + 30 seconds per move from move one."]
[WhiteTitle "FM"]
[BlackTitle "IM"]
[WhiteElo "2399"]
[BlackElo "2444"]

1. Nf3 {[%clk 01:17:38]} {[%emt 00:13:22]} d5 {[%clk 01:28:53]} {[%emt
00:02:07]} 2. b3 {[%clk 01:17:51]} {[%emt 00:00:17]} Bg4 {[%clk 01:23:30]}
{[%emt 00:05:53]} 3. Bb2 {[%clk 01:17:31]} {[%emt 00:00:51]} Nd7 {[%clk
01:23:20]} {[%emt 00:00:40]} 4. g3 {[%clk 01:16:37]} {[%emt 00:01:24]} e6
{[%clk 01:20:28]} {[%emt 00:03:23]} 5. Bg2 {[%clk 01:16:10]} {[%emt 00:00:55]}
Ngf6 {[%clk 01:20:54]} {[%emt 00:00:05]} 6. c4 {[%clk 01:15:05]} {[%emt
00:01:36]} c6 {[%clk 01:20:03]} {[%emt 00:01:20]} 7. h3 {[%clk 01:15:08]}
{[%emt 00:00:26]} Bh5 {[%clk 01:17:42]} {[%emt 00:02:52]} 8. O-O {[%clk
01:15:01]} {[%emt 00:00:36]} Bd6 {[%clk 01:17:25]} {[%emt 00:00:47]} 9. Nc3
{[%clk 01:12:52]} {[%emt 00:02:40]} Bxf3 {[%clk 01:07:39]} {[%emt 00:10:17]} 10.
Bxf3 {[%clk 01:10:11]} {[%emt 00:03:11]} dxc4 {[%clk 01:07:12]} {[%emt
00:00:57]} 11. bxc4 {[%clk 01:09:47]} {[%emt 00:00:54]} Ne5 {[%clk 01:07:26]}
{[%emt 00:00:16]} 12. Qb3 {[%clk 01:09:07]} {[%emt 00:01:10]} Nxf3+ {[%clk
01:07:34]} {[%emt 00:00:22]} 13. exf3 {[%clk 01:09:35]} {[%emt 00:00:02]} O-O
{[%clk 01:01:13]} {[%emt 00:06:52]} 14. d4 {[%clk 01:03:16]} {[%emt 00:06:50]}
Rb8 {[%clk 00:55:15]} {[%emt 00:06:27]} 15. a4 {[%clk 00:51:52]} {[%emt
00:11:54]} Qa5 {[%clk 00:52:39]} {[%emt 00:03:06]} 16. Ne4 {[%clk 00:47:26]}
{[%emt 00:04:50]} Be7 {[%clk 00:51:53]} {[%emt 00:01:22]} 17. d5 {[%clk
00:47:17]} {[%emt 00:00:40]} cxd5 {[%clk 00:51:09]} {[%emt 00:01:14]} 18. Nxf6+
{[%clk 00:47:38]} {[%emt 00:00:08]} Bxf6 {[%clk 00:50:55]} {[%emt 00:00:44]} 19.
Bxf6 {[%clk 00:48:01]} {[%emt 00:00:07]} gxf6 {[%clk 00:50:17]} {[%emt
00:01:08]} 20. cxd5 {[%clk 00:45:38]} {[%emt 00:02:52]} Qxd5 {[%clk 00:50:32]}
{[%emt 00:00:16]} 21. Qe3 {[%clk 00:45:58]} {[%emt 00:00:09]} Rfd8 {[%clk
00:40:56]} {[%emt 00:10:06]} 22. Rfd1 {[%clk 00:41:06]} {[%emt 00:05:22]} Qa5
{[%clk 00:39:38]} {[%emt 00:01:48]} 23. Kg2 {[%clk 00:34:56]} {[%emt 00:06:40]}
a6 {[%clk 00:32:59]} {[%emt 00:07:10]} 24. Qe4 {[%clk 00:32:22]} {[%emt
00:03:01]} Qe5 {[%clk 00:29:58]} {[%emt 00:03:32]} 25. Qg4+ {[%clk 00:32:16]}
{[%emt 00:00:36]} Kh8 {[%clk 00:29:31]} {[%emt 00:00:58]} 26. Qb4 {[%clk
00:31:10]} {[%emt 00:01:35]} Rd5 {[%clk 00:25:22]} {[%emt 00:04:39]} 27. Rxd5
{[%clk 00:29:20]} {[%emt 00:02:21]} Qxd5 {[%clk 00:25:23]} {[%emt 00:00:29]} 28.
Rc1 {[%clk 00:29:14]} {[%emt 00:00:36]} Qd8 {[%clk 00:16:34]} {[%emt 00:09:18]}
29. Rc4 {[%clk 00:23:48]} {[%emt 00:05:56]} b5 {[%clk 00:16:19]} {[%emt
00:00:46]} 30. axb5 {[%clk 00:22:11]} {[%emt 00:02:07]} axb5 {[%clk 00:16:18]}
{[%emt 00:00:31]} 31. Rc6 {[%clk 00:19:11]} {[%emt 00:03:29]} Kg7 {[%clk
00:15:15]} {[%emt 00:01:34]} 32. Rc5 {[%clk 00:12:50]} {[%emt 00:06:50]} Qd7
{[%clk 00:12:29]} {[%emt 00:03:17]} 33. Qg4+ {[%clk 00:12:43]} {[%emt
00:00:36]} Kf8 {[%clk 00:11:50]} {[%emt 00:01:10]} 34. Rh5 {[%clk 00:08:10]}
{[%emt 00:05:03]} Qd3 {[%clk 00:08:44]} {[%emt 00:03:36]} 35. Qf4 {[%clk
00:07:50]} {[%emt 00:00:49]} Rd8 {[%clk 00:06:53]} {[%emt 00:02:22]} 36. Qb4+
{[%clk 00:04:15]} {[%emt 00:04:04]} Kg7 {[%clk 00:06:32]} {[%emt 00:00:52]} 37.
Qg4+ {[%clk 00:01:51]} {[%emt 00:02:53]} Qg6 {[%clk 00:03:22]} {[%emt
00:03:40]} 38. Rxb5 {[%clk 00:02:09]} {[%emt 00:00:12]} Qxg4 {[%clk 00:03:46]}
{[%emt 00:00:06]} 39. hxg4 {[%clk 00:02:30]} {[%emt 00:00:10]} Rd4 {[%clk
00:03:32]} {[%emt 00:00:43]} 40. f4 {[%clk 00:02:35]} {[%emt 00:00:25]} Rd3
{[%clk 00:03:51]} {[%emt 00:00:12]} 41. Ra5 {[%clk 00:02:26]} {[%emt 00:00:38]}
Rc3 {[%clk 00:04:13]} {[%emt 00:00:08]} 42. Rb5 {[%clk 00:02:51]} {[%emt
00:00:05]} Rd3 {[%clk 00:04:40]} {[%emt 00:00:03]} 43. Rc5 {[%clk 00:03:12]}
{[%emt 00:00:08]} Rb3 {[%clk 00:05:03]} {[%emt 00:00:08]} 44. Ra5 {[%clk
00:03:38]} {[%emt 00:00:05]} Rc3 {[%clk 00:05:27]} {[%emt 00:00:05]} 1/2-1/2